fUST/lending_fUST_20260509
["ID","MTS","AMOUNT","RATE_DAILY","PERIOD"]
[421903837,1778315450000,-1090.75,0.00012602,2]
[421903834,1778315450000,-3825.04,0.00012602,2]
[421903841,1778315450000,-1100.62,0.00012602,2]
[421903840,1778315450000,-535.57,0.00012602,2]
[421903852,1778315450000,-506.95,0.00012602,2]
[421903842,1778315450000,-500.0,0.00012602,2]
[421903851,1778315450000,-500.0,0.00012602,2]
[421903845,1778315450000,-498.18,0.00012602,2]
[421903833,1778315450000,-500.0,0.00012602,2]
[421903843,1778315450000,-500.0,0.00012602,2]
[421903844,1778315450000,-500.0,0.00012602,2]
[421903864,1778315450000,-507.77,0.00012602,2]
[421903863,1778315450000,-500.0,0.00012602,2]
[421903855,1778315450000,-802.52,0.00012602,2]
[421903856,1778315450000,-2149.26,0.00012602,2]
[421903853,1778315450000,-500.0,0.00012602,2]
[421903865,1778315450000,-500.0,0.00012602,2]
[421903850,1778315450000,-859.52,0.00012602,2]
[421903846,1778315450000,-500.0,0.00012602,2]
[421903849,1778315450000,-450.48,0.00012602,2]
[421903848,1778315450000,-628.55,0.00012602,2]
[421903847,1778315450000,-1222.76,0.00012602,2]
[421903854,1778315450000,-681.8,0.00012602,2]
[421903940,1778315451000,-1222.76,0.00012876,2]
[421903929,1778315451000,-592.89,0.00012876,2]
[421903928,1778315451000,-3825.04,0.00012876,2]
[421903927,1778315451000,-500.0,0.00012876,2]
[421903926,1778315451000,-500.0,0.00012876,2]
[421903921,1778315451000,-1819.96,0.00012876,2]
[421903924,1778315451000,-500.0,0.00012876,2]
[421903925,1778315451000,-875.31,0.00012876,2]
[421903941,1778315451000,-628.55,0.00012876,2]
[421903923,1778315451000,-2067.45,0.00012876,2]
[421903922,1778315451000,-500.0,0.00012876,2]
[421903936,1778315451000,-500.0,0.00012876,2]
[421903930,1778315451000,-2744.38,0.00012876,2]
[421903931,1778315451000,-1090.75,0.00012876,2]
[421903934,1778315451000,-535.57,0.00012876,2]
[421903932,1778315451000,-731.38,0.00012876,2]
[421903938,1778315451000,-500.0,0.00012876,2]
[421903937,1778315451000,-500.0,0.00012876,2]
[421903935,1778315451000,-1100.62,0.00012876,2]
[421903939,1778315451000,-500.0,0.00012876,2]
[421903943,1778315451000,-500.0,0.00012876,2]
[421903953,1778315451000,-1687.57,0.00012876,2]
[421903944,1778315451000,-506.95,0.00012876,2]
[421903954,1778315451000,-500.0,0.00012876,2]
[421903933,1778315451000,-734.75,0.00012876,2]
[421903919,1778315451000,-500.0,0.00012876,2]
[421903916,1778315451000,-548.03,0.00012876,2]
[421903918,1778315451000,-500.0,0.00012876,2]
[421903946,1778315451000,-681.8,0.00012876,2]
[421903895,1778315451000,-500.0,0.00012876,2]
[421903894,1778315451000,-1194.49,0.00012876,2]
[421903896,1778315451000,-592.64,0.00012876,2]
[421903893,1778315451000,-623.29,0.00012876,2]
[421903898,1778315451000,-500.0,0.00012876,2]
[421903897,1778315451000,-1051.41,0.00012876,2]
[421903899,1778315451000,-500.0,0.00012876,2]
[421903900,1778315451000,-500.0,0.00012876,2]
[421903903,1778315451000,-500.0,0.00012876,2]
[421903902,1778315451000,-334.17,0.00012876,2]
[421903901,1778315451000,-545.6,0.00012876,2]
[421903904,1778315451000,-500.0,0.00012876,2]
[421903906,1778315451000,-549.97,0.00012876,2]
[421903905,1778315451000,-604.84,0.00012876,2]
[421903907,1778315451000,-500.0,0.00012876,2]
[421903913,1778315451000,-233.61,0.00012876,2]
[421903910,1778315451000,-500.0,0.00012876,2]
[421903909,1778315451000,-500.0,0.00012876,2]
[421903908,1778315451000,-1221.2,0.00012876,2]
[421903911,1778315451000,-667.76,0.00012876,2]
[421903914,1778315451000,-1165.59,0.00012876,2]
[421903915,1778315451000,-500.0,0.00012876,2]
[421903912,1778315451000,-550.85,0.00012876,2]
[421903917,1778315451000,-500.0,0.00012876,2]
[421903920,1778315451000,-554.31,0.00012876,2]
[421903942,1778315451000,-859.52,0.00012876,2]
[421903969,1778315451000,-500.0,0.00012876,2]
[421903947,1778315451000,-802.52,0.00012876,2]
[421903980,1778315451000,-502.88,0.0001315,2]
[421903985,1778315451000,-500.0,0.0001315,2]
[421903981,1778315451000,-525.56,0.0001315,2]
[421903982,1778315451000,-500.0,0.0001315,2]
[421903984,1778315451000,-1194.49,0.0001315,2]
[421903983,1778315451000,-623.29,0.0001315,2]
[421903987,1778315451000,-1051.41,0.0001315,2]
[421903986,1778315451000,-592.64,0.0001315,2]
[421903991,1778315451000,-545.6,0.0001315,2]
[421903989,1778315451000,-500.0,0.0001315,2]
[421903988,1778315451000,-500.0,0.0001315,2]
[421903977,1778315451000,-500.0,0.0001315,2]
[421903993,1778315451000,-500.0,0.0001315,2]
[421903992,1778315451000,-500.0,0.0001315,2]
[421903996,1778315451000,-500.0,0.0001315,2]
[421903994,1778315451000,-604.84,0.0001315,2]
[421903995,1778315451000,-549.97,0.0001315,2]
[421903998,1778315451000,-500.0,0.0001315,2]
[421904001,1778315451000,-550.85,0.0001315,2]
[421903997,1778315451000,-1221.2,0.0001315,2]
[421904000,1778315451000,-667.76,0.0001315,2]
[421904002,1778315451000,-1165.59,0.0001315,2]
[421903999,1778315451000,-500.0,0.0001315,2]
[421903945,1778315451000,-500.0,0.00012876,2]
[421904003,1778315451000,-500.0,0.0001315,2]
[421903976,1778315451000,-500.0,0.0001315,2]
[421903990,1778315451000,-500.0,0.0001315,2]
[421903974,1778315451000,-155.0,0.00013148,2]
[421903948,1778315451000,-2149.26,0.00012876,2]
[421903975,1778315451000,-500.0,0.0001315,2]
[421903949,1778315451000,-1234.35,0.00012876,2]
[421903951,1778315451000,-500.0,0.00012876,2]
[421903950,1778315451000,-3051.79,0.00012876,2]
[421903952,1778315451000,-678.04,0.00012876,2]
[421903955,1778315451000,-507.77,0.00012876,2]
[421903957,1778315451000,-528.25,0.00012876,2]
[421903961,1778315451000,-1554.02,0.00012876,2]
[421903958,1778315451000,-15569.89,0.00012876,2]
[421903963,1778315451000,-500.0,0.00012876,2]
[421903962,1778315451000,-2925.65,0.00012876,2]
[421903964,1778315451000,-500.0,0.00012876,2]
[421903960,1778315451000,-1186.27,0.00012876,2]
[421903959,1778315451000,-566.2,0.00012876,2]
[421903973,1778315451000,-6268.95751979,0.000129,2]
[421903968,1778315451000,-500.0,0.00012876,2]
[421903979,1778315451000,-1197.6811,0.0001315,2]
[421903978,1778315451000,-500.17,0.0001315,2]
[421903972,1778315451000,-1479.23,0.00012876,2]
[421903971,1778315451000,-709.72,0.00012876,2]
[421903967,1778315451000,-342.86,0.00012876,2]
[421903966,1778315451000,-645.42,0.00012876,2]
[421903956,1778315451000,-500.0,0.00012876,2]
[421903965,1778315451000,-567.89,0.00012876,2]
[421903970,1778315451000,-714.26,0.00012876,2]
[421904045,1778315452000,-528.25,0.0001315,2]
[421904046,1778315452000,-15569.89,0.0001315,2]
[421904055,1778315452000,-500.0,0.0001315,2]
[421904040,1778315452000,-678.04,0.0001315,2]
[421904036,1778315452000,-2149.26,0.0001315,2]
[421904041,1778315452000,-1687.57,0.0001315,2]
[421904039,1778315452000,-500.0,0.0001315,2]
[421904038,1778315452000,-3051.79,0.0001315,2]
[421904034,1778315452000,-681.8,0.0001315,2]
[421904035,1778315452000,-802.52,0.0001315,2]
[421904044,1778315452000,-500.0,0.0001315,2]
[421904037,1778315452000,-1234.35,0.0001315,2]
[421904053,1778315452000,-645.42,0.0001315,2]
[421904061,1778315452000,-500.0,0.00013424,2]
[421904051,1778315452000,-500.0,0.0001315,2]
[421904054,1778315452000,-500.0,0.0001315,2]
[421904047,1778315452000,-566.2,0.0001315,2]
[421904048,1778315452000,-1186.27,0.0001315,2]
[421904050,1778315452000,-2925.65,0.0001315,2]
[421904049,1778315452000,-1554.02,0.0001315,2]
[421904058,1778315452000,-1479.23,0.0001315,2]
[421904067,1778315452000,-525.56,0.00013424,2]
[421904057,1778315452000,-709.72,0.0001315,2]
[421904060,1778315452000,-369.41312365,0.00013365,14]
[421904056,1778315452000,-714.26,0.0001315,2]
[421904066,1778315452000,-502.88,0.00013424,2]
[421904043,1778315452000,-507.77,0.0001315,2]
[421904052,1778315452000,-500.0,0.0001315,2]
[421904033,1778315452000,-500.0,0.0001315,2]
[421904005,1778315452000,-500.0,0.0001315,2]
[421904042,1778315452000,-643.30988995,0.0001315,2]
[421904004,1778315452000,-548.03,0.0001315,2]
[421904006,1778315452000,-500.0,0.0001315,2]
[421904016,1778315452000,-3825.04,0.0001315,2]
[421904062,1778315452000,-500.0,0.00013424,2]
[421904007,1778315452000,-500.0,0.0001315,2]
[421904017,1778315452000,-592.89,0.0001315,2]
[421904009,1778315452000,-1819.96,0.0001315,2]
[421904012,1778315452000,-500.0,0.0001315,2]
[421904013,1778315452000,-875.31,0.0001315,2]
[421904015,1778315452000,-500.0,0.0001315,2]
[421904010,1778315452000,-500.0,0.0001315,2]
[421904008,1778315452000,-554.31,0.0001315,2]
[421904011,1778315452000,-2067.45,0.0001315,2]
[421904031,1778315452000,-500.0,0.0001315,2]
[421904014,1778315452000,-500.0,0.0001315,2]
[421904018,1778315452000,-2744.38,0.0001315,2]
[421904029,1778315452000,-628.55,0.0001315,2]
[421904020,1778315452000,-731.38,0.0001315,2]
[421904026,1778315452000,-500.0,0.0001315,2]
[421904030,1778315452000,-859.52,0.0001315,2]
[421904021,1778315452000,-734.75,0.0001315,2]
[421904022,1778315452000,-535.57,0.0001315,2]
[421904028,1778315452000,-1222.76,0.0001315,2]
[421904027,1778315452000,-500.0,0.0001315,2]
[421904023,1778315452000,-1100.62,0.0001315,2]
[421904025,1778315452000,-500.0,0.0001315,2]
[421904024,1778315452000,-500.0,0.0001315,2]
[421904032,1778315452000,-506.95,0.0001315,2]
[421904019,1778315452000,-1090.75,0.0001315,2]
[421904063,1778315452000,-500.0,0.00013424,2]
[421904084,1778315452000,-416.82513906,0.00013424,2]
[421904064,1778315452000,-500.17,0.00013424,2]
[421904099,1778315452000,-875.31,0.00013424,2]
[421904102,1778315452000,-3825.04,0.00013424,2]
[421904059,1778315452000,-473.0,0.00013309,2]
[421904103,1778315452000,-592.89,0.00013424,2]
[421904100,1778315452000,-500.0,0.00013424,2]
[421904106,1778315452000,-731.38,0.00013424,2]
[421904109,1778315452000,-1100.62,0.00013424,2]
[421904107,1778315452000,-734.75,0.00013424,2]
[421904108,1778315452000,-535.57,0.00013424,2]
[421904105,1778315452000,-1090.75,0.00013424,2]
[421904114,1778315452000,-1222.76,0.00013424,2]
[421904116,1778315452000,-859.52,0.00013424,2]
[421904113,1778315452000,-500.0,0.00013424,2]
[421904098,1778315452000,-500.0,0.00013424,2]
[421904115,1778315452000,-628.55,0.00013424,2]
[421904111,1778315452000,-500.0,0.00013424,2]
[421904112,1778315452000,-500.0,0.00013424,2]
[421904117,1778315452000,-500.0,0.00013424,2]
[421904119,1778315452000,-500.0,0.00013424,2]
[421904118,1778315452000,-506.95,0.00013424,2]
[421904121,1778315452000,-802.52,0.00013424,2]
[421904120,1778315452000,-681.8,0.00013424,2]
[421904123,1778315452000,-1234.35,0.00013424,2]
[421904124,1778315452000,-3051.79,0.00013424,2]
[421904122,1778315452000,-2149.26,0.00013424,2]
[421904125,1778315452000,-500.0,0.00013424,2]
[421904127,1778315452000,-1687.57,0.00013424,2]
[421904126,1778315452000,-678.04,0.00013424,2]
[421904110,1778315452000,-500.0,0.00013424,2]
[421904101,1778315452000,-500.0,0.00013424,2]
[421904097,1778315452000,-2067.45,0.00013424,2]
[421904095,1778315452000,-1819.96,0.00013424,2]
[421904065,1778315452000,-1197.6811,0.00013424,2]
[421904069,1778315452000,-623.29,0.00013424,2]
[421904068,1778315452000,-500.0,0.00013424,2]
[421904079,1778315452000,-500.0,0.00013424,2]
[421904077,1778315452000,-545.6,0.00013424,2]
[421904072,1778315452000,-592.64,0.00013424,2]
[421904075,1778315452000,-500.0,0.00013424,2]
[421904070,1778315452000,-1194.49,0.00013424,2]
[421904074,1778315452000,-500.0,0.00013424,2]
[421904096,1778315452000,-500.0,0.00013424,2]
[421904073,1778315452000,-1051.41,0.00013424,2]
[421904078,1778315452000,-500.0,0.00013424,2]
[421904076,1778315452000,-500.0,0.00013424,2]
[421904080,1778315452000,-604.84,0.00013424,2]
[421904071,1778315452000,-500.0,0.00013424,2]
[421904081,1778315452000,-549.97,0.00013424,2]
[421904093,1778315452000,-500.0,0.00013424,2]
[421904082,1778315452000,-500.0,0.00013424,2]
[421904094,1778315452000,-554.31,0.00013424,2]
[421904091,1778315452000,-523.41356281,0.00013424,2]
[421904086,1778315452000,-667.76,0.00013424,2]
[421904087,1778315452000,-550.85,0.00013424,2]
[421904104,1778315452000,-2744.38,0.00013424,2]
[421904088,1778315452000,-1165.59,0.00013424,2]
[421904092,1778315452000,-500.0,0.00013424,2]
[421904090,1778315452000,-548.03,0.00013424,2]
[421904085,1778315452000,-500.0,0.00013424,2]
[421904083,1778315452000,-1221.2,0.00013424,2]
[421904089,1778315452000,-500.0,0.00013424,2]
[421904129,1778315453000,-500.0,0.00013424,2]
[421904128,1778315453000,-507.77,0.00013424,2]
[421904131,1778315453000,-15569.89,0.00013424,2]
[421904142,1778315453000,-709.72,0.00013424,2]
[421904141,1778315453000,-714.26,0.00013424,2]
[421904130,1778315453000,-528.25,0.00013424,2]
[421904132,1778315453000,-566.2,0.00013424,2]
[421904133,1778315453000,-1186.27,0.00013424,2]
[421904135,1778315453000,-2925.65,0.00013424,2]
[421904136,1778315453000,-500.0,0.00013424,2]
[421904139,1778315453000,-500.0,0.00013424,2]
[421904134,1778315453000,-1554.02,0.00013424,2]
[421904149,1778315453000,-1223.92988995,0.00010847,2]
[421904148,1778315453000,-420.8168224,0.00010957,2]
[421904147,1778315453000,-1178.98896994,0.00013632,2]
[421904144,1778315453000,-1000.0,0.00013575,2]
[421904138,1778315453000,-645.42,0.00013424,2]
[421904145,1778315453000,-10000.0,0.00013632,2]
[421904137,1778315453000,-500.0,0.00013424,2]
[421904146,1778315453000,-5531.11404665,0.00013632,2]
[421904143,1778315453000,-1479.23,0.00013424,2]
[421904140,1778315453000,-500.0,0.00013424,2]
[421904151,1778315586000,175.303594,5.134e-05,2]
[421904157,1778316460000,167.003956,6.294e-05,2]
[421904156,1778316460000,167.003956,5.508e-05,2]
[421904155,1778316460000,167.003956,4.721e-05,2]
[421904159,1778316461000,167.003956,7.868e-05,2]
[421904158,1778316461000,167.003956,7.081e-05,2]
[421904182,1778316632000,-167.003956,8.655e-05,2]
[421904187,1778316632000,-300.0,9.283e-05,2]
[421904181,1778316632000,-244.06796069,8.611e-05,2]
[421904184,1778316632000,-300.0,9.283e-05,2]
[421904171,1778316632000,-2727.47473491,8.482e-05,2]
[421904185,1778316632000,-300.0,9.283e-05,2]
[421904176,1778316632000,-2272.52526509,8.482e-05,2]
[421904191,1778316632000,-1200.0,9.283e-05,2]
[421904189,1778316632000,-300.0,9.283e-05,2]
[421904193,1778316632000,-167.003956,9.442e-05,2]
[421904179,1778316632000,-5000.0,8.568e-05,2]
[421904206,1778316632000,-300.0,0.00010421,2]
[421904204,1778316632000,-300.0,0.00010421,2]
[421904217,1778316632000,-257.07952489,0.00010421,2]
[421904214,1778316632000,-300.0,0.00010421,2]
[421904212,1778316632000,-300.0,0.00010421,2]
[421904202,1778316632000,-175.303594,0.00010268,2]
[421904210,1778316632000,-300.0,0.00010421,2]
[421904200,1778316632000,-1680.0,0.00010211,2]
[421904195,1778316632000,-420.0,0.00010211,2]
[421904198,1778316632000,-183.0,0.00010211,2]
[421904208,1778316632000,-300.0,0.00010421,2]
[421904197,1778316632000,-420.0,0.00010211,2]
[421904247,1778316638000,-500.0,0.00010957,2]
[421904243,1778316638000,-3066.95425651,0.00010956,2]
[421904234,1778316638000,-288.00019362,0.00010611,2]
[421904238,1778316638000,-500.0,0.00010683,2]
[421904242,1778316638000,-180.21486844,0.00010858,2]
[421904240,1778316638000,-500.0,0.00010683,2]
[421904244,1778316638000,-6164.04574349,0.00010956,2]
[421904246,1778316638000,-500.0,0.00010957,2]
[421904256,1778316638000,-500.0,0.00010957,2]
[421904239,1778316638000,-500.0,0.00010683,2]
[421904241,1778316638000,-461.27161685,0.00010683,2]
[421904235,1778316638000,-600.0,0.00010628,2]
[421904229,1778316638000,-300.0,0.00010421,2]
[421904236,1778316638000,-500.0,0.00010683,2]
[421904233,1778316638000,-300.0,0.00010421,2]
[421904232,1778316638000,-300.0,0.00010421,2]
[421904231,1778316638000,-300.0,0.00010421,2]
[421904230,1778316638000,-300.0,0.00010421,2]
[421904228,1778316638000,-300.0,0.00010421,2]
[421904227,1778316638000,-300.0,0.00010421,2]
[421904226,1778316638000,-300.0,0.00010421,2]
[421904224,1778316638000,-5000.0,8.397e-05,2]
[421904225,1778316638000,-42.92047511,0.00010421,2]
[421904245,1778316638000,-500.0,0.00010957,2]
[421904237,1778316638000,-500.0,0.00010683,2]
[421904248,1778316638000,-500.89378027,0.00010957,2]
[421904250,1778316638000,-500.0,0.00010957,2]
[421904251,1778316638000,-500.0,0.00010957,2]
[421904249,1778316638000,-500.0,0.00010957,2]
[421904276,1778316638000,-500.0,0.00010957,2]
[421904273,1778316638000,-500.0,0.00010957,2]
[421904274,1778316638000,-500.0,0.00010957,2]
[421904272,1778316638000,-500.0,0.00010957,2]
[421904275,1778316638000,-500.0,0.00010957,2]
[421904271,1778316638000,-500.0,0.00010957,2]
[421904262,1778316638000,-500.0,0.00010957,2]
[421904258,1778316638000,-500.0,0.00010957,2]
[421904264,1778316638000,-596.72670095,0.00010957,2]
[421904260,1778316638000,-500.0,0.00010957,2]
[421904261,1778316638000,-500.0,0.00010957,2]
[421904263,1778316638000,-500.0,0.00010957,2]
[421904268,1778316638000,-500.0,0.00010957,2]
[421904254,1778316638000,-500.0,0.00010957,2]
[421904267,1778316638000,-500.0,0.00010957,2]
[421904253,1778316638000,-475.37414921,0.00010957,2]
[421904252,1778316638000,-500.0,0.00010957,2]
[421904257,1778316638000,-500.0,0.00010957,2]
[421904255,1778316638000,-500.0,0.00010957,2]
[421904269,1778316638000,-500.0,0.00010957,2]
[421904270,1778316638000,-500.0,0.00010957,2]
[421904265,1778316638000,-500.0,0.00010957,2]
[421904266,1778316638000,-388.36775979,0.00010957,2]
[421904259,1778316638000,-500.0,0.00010957,2]
[421904295,1778316639000,-500.0,0.00010957,2]
[421904289,1778316639000,-500.0,0.00010957,2]
[421904291,1778316639000,-500.0,0.00010957,2]
[421904294,1778316639000,-500.0,0.00010957,2]
[421904296,1778316639000,-500.0,0.00010957,2]
[421904304,1778316639000,-500.0,0.00010957,2]
[421904298,1778316639000,-500.0,0.00010957,2]
[421904299,1778316639000,-500.0,0.00010957,2]
[421904301,1778316639000,-500.0,0.00010957,2]
[421904290,1778316639000,-500.0,0.00010957,2]
[421904293,1778316639000,-500.0,0.00010957,2]
[421904292,1778316639000,-500.0,0.00010957,2]
[421904281,1778316639000,-500.0,0.00010957,2]
[421904297,1778316639000,-325.06866735,0.00010957,2]
[421904287,1778316639000,-500.0,0.00010957,2]
[421904286,1778316639000,-500.0,0.00010957,2]
[421904285,1778316639000,-500.0,0.00010957,2]
[421904284,1778316639000,-500.0,0.00010957,2]
[421904280,1778316639000,-500.0,0.00010957,2]
[421904279,1778316639000,-500.0,0.00010957,2]
[421904277,1778316639000,-500.0,0.00010957,2]
[421904282,1778316639000,-500.0,0.00010957,2]
[421904283,1778316639000,-500.0,0.00010957,2]
[421904278,1778316639000,-500.0,0.00010957,2]
[421904302,1778316639000,-500.0,0.00010957,2]
[421904288,1778316639000,-500.0,0.00010957,2]
[421904308,1778316639000,-500.0,0.00010957,2]
[421904328,1778316639000,-500.0,0.00010958,2]
[421904300,1778316639000,-500.0,0.00010957,2]
[421904303,1778316639000,-500.0,0.00010957,2]
[421904330,1778316639000,-500.0,0.00010958,2]
[421904329,1778316639000,-500.0,0.00010958,2]
[421904331,1778316639000,-500.0,0.00010958,2]
[421904332,1778316639000,-598.03142361,0.00010958,2]
[421904327,1778316639000,-500.0,0.00010958,2]
[421904326,1778316639000,-500.0,0.00010958,2]
[421904325,1778316639000,-500.0,0.00010958,2]
[421904319,1778316639000,-500.0,0.00010958,2]
[421904318,1778316639000,-1305.7807,0.00010958,2]
[421904322,1778316639000,-500.0,0.00010958,2]
[421904313,1778316639000,-500.0,0.00010957,2]
[421904317,1778316639000,-500.0,0.00010958,2]
[421904324,1778316639000,-500.0,0.00010958,2]
[421904323,1778316639000,-500.0,0.00010958,2]
[421904310,1778316639000,-500.0,0.00010957,2]
[421904315,1778316639000,-386.71130572,0.00010957,2]
[421904306,1778316639000,-500.0,0.00010957,2]
[421904307,1778316639000,-500.0,0.00010957,2]
[421904309,1778316639000,-500.0,0.00010957,2]
[421904311,1778316639000,-500.0,0.00010957,2]
[421904305,1778316639000,-500.0,0.00010957,2]
[421904314,1778316639000,-500.0,0.00010957,2]
[421904316,1778316639000,-500.0,0.00010958,2]
[421904320,1778316639000,-500.0,0.00010958,2]
[421904321,1778316639000,-500.0,0.00010958,2]
[421904312,1778316639000,-500.0,0.00010957,2]
[421904352,1778316643000,-500.0,0.00010958,2]
[421904342,1778316643000,-5000.0,0.00010848,2]
[421904346,1778316643000,-500.0,0.00010958,2]
[421904347,1778316643000,-500.0,0.00010958,2]
[421904344,1778316643000,-500.0,0.00010958,2]
[421904345,1778316643000,-500.0,0.00010958,2]
[421904350,1778316643000,-500.0,0.00010958,2]
[421904343,1778316643000,-244.58857639,0.00010958,2]
[421904348,1778316643000,-500.0,0.00010958,2]
[421904349,1778316643000,-500.0,0.00010958,2]
[421904351,1778316643000,-500.0,0.00010958,2]
[421904361,1778316643000,-500.0,0.00010958,2]
[421904354,1778316643000,-500.0,0.00010958,2]
[421904353,1778316643000,-500.0,0.00010958,2]
[421904363,1778316643000,-500.0,0.00010958,2]
[421904358,1778316643000,-500.0,0.00010958,2]
[421904362,1778316643000,-500.0,0.00010958,2]
[421904364,1778316643000,-500.0,0.00010958,2]
[421904360,1778316643000,-500.0,0.00010958,2]
[421904357,1778316643000,-500.0,0.00010958,2]
[421904356,1778316643000,-759.15,0.00010958,2]
[421904355,1778316643000,-550.7,0.00010958,2]
[421904359,1778316643000,-500.0,0.00010958,2]
[421904378,1778316644000,-500.0,0.00010958,2]
[421904375,1778316644000,-500.0,0.00010958,2]
[421904377,1778316644000,-500.0,0.00010958,2]
[421904373,1778316644000,-500.0,0.00010958,2]
[421904384,1778316644000,-500.0,0.00010958,2]
[421904379,1778316644000,-500.0,0.00010958,2]
[421904370,1778316644000,-825.76,0.00010958,2]
[421904371,1778316644000,-500.0,0.00010958,2]
[421904369,1778316644000,-515.26,0.00010958,2]
[421904366,1778316644000,-500.0,0.00010958,2]
[421904376,1778316644000,-500.0,0.00010958,2]
[421904367,1778316644000,-858.2,0.00010958,2]
[421904365,1778316644000,-500.0,0.00010958,2]
[421904374,1778316644000,-500.0,0.00010958,2]
[421904381,1778316644000,-533.25,0.00010958,2]
[421904368,1778316644000,-500.0,0.00010958,2]
[421904380,1778316644000,-500.0,0.00010958,2]
[421904383,1778316644000,-500.0,0.00010958,2]
[421904398,1778316644000,-1508.02618966,0.00010958,2]
[421904392,1778316644000,-500.0,0.00010958,2]
[421904393,1778316644000,-550.52,0.00010958,2]
[421904391,1778316644000,-500.0,0.00010958,2]
[421904395,1778316644000,-572.82,0.00010958,2]
[421904387,1778316644000,-553.05,0.00010958,2]
[421904396,1778316644000,-500.0,0.00010958,2]
[421904372,1778316644000,-500.0,0.00010958,2]
[421904394,1778316644000,-500.0,0.00010958,2]
[421904389,1778316644000,-501.91190587,0.00010958,2]
[421904388,1778316644000,-782.11,0.00010958,2]
[421904390,1778316644000,-500.0,0.00010958,2]
[421904386,1778316644000,-500.0,0.00010958,2]
[421904385,1778316644000,-500.0,0.00010958,2]
[421904382,1778316644000,-500.0,0.00010958,2]
[421904397,1778316644000,-787.86,0.00010958,2]
[421904409,1778316646000,-500.0,0.00010958,2]
[421904414,1778316646000,-500.0,0.00010958,2]
[421904413,1778316646000,-500.0,0.00010958,2]
[421904416,1778316646000,-500.0,0.00010958,2]
[421904415,1778316646000,-1130.25,0.00010958,2]
[421904417,1778316646000,-500.0,0.00010958,2]
[421904429,1778316646000,-500.0,0.00010958,2]
[421904428,1778316646000,-1052.35,0.00010958,2]
[421904430,1778316646000,-1404.7,0.00010958,2]
[421904422,1778316646000,-500.0,0.00010958,2]
[421904418,1778316646000,-817.44,0.00010958,2]
[421904408,1778316646000,-500.0,0.00010958,2]
[421904407,1778316646000,-512.18,0.00010958,2]
[421904411,1778316646000,-500.0,0.00010958,2]
[421904410,1778316646000,-1939.51,0.00010958,2]
[421904421,1778316646000,-865.87,0.00010958,2]
[421904406,1778316646000,-500.0,0.00010958,2]
[421904403,1778316646000,-1760.19,0.00010958,2]
[421904405,1778316646000,-500.0,0.00010958,2]
[421904404,1778316646000,-500.0,0.00010958,2]
[421904402,1778316646000,-500.0,0.00010958,2]
[421904401,1778316646000,-500.0,0.00010958,2]
[421904399,1778316646000,-879.62381034,0.00010958,2]
[421904400,1778316646000,-545.3,0.00010958,2]
[421904412,1778316646000,-500.0,0.00010958,2]